[Event "45th FIDE Olympiad 2024"]
[Site "Budapest"]
[Date "2024.09.11"]
[Round "1.35"]
[White "Pride, Avian"]
[Black "Hommadov, Amanmuhammet"]
[Result "0-1"]
[ECO "D82"]
[WhiteElo "1743"]
[BlackElo "2181"]
[Annotator "ChessBase"]
[PlyCount "124"]
[EventDate "2024.09.05"]
[EventType "team-tourn"]
[EventCountry "HUN"]
[SourceTitle "playchess.com"]
[Source "ChessBase"]
[SourceQuality "1"]
[WhiteTeam "Bahamas"]
[BlackTeam "Turkmenistan"]
[WhiteTeamCountry "BAH"]
[BlackTeamCountry "TKM"]
[TimeControl "40/5400+30:1800+30"]

1. d4 Nf6 2. c4 g6 3. Nc3 d5 4. Nf3 Bg7 5. Bf4 O-O 6. e3 c5 7. dxc5 Qa5 8. Qb3 dxc4 9. Bxc4 Qxc5 10. O-O Nc6 11. Qb5 Qxb5 12. Bxb5 Nh5 13. Bxc6 Nxf4 14. Ba4 Nd3 15. Nd5 e6 16. Ne7+ Kh8 17. Bb5 Nxb2 18. Rab1 a6 19. Nd4 Bxd4 20. exd4 axb5 21. Nxc8 Nc4 22. Rxb5 Rfxc8 23. Rxb7 Kg7 24. g3 Rxa2 25. Re1 Ra6 26. Rc1 Nd6 27. Rxc8 Nxc8 28. Rc7 Nb6 29. Rc6 Ra1+ 30. Kg2 Nd5 31. Rc2 Rd1 32. Rc4 Rd3 33. Kf1 Nc3 34. h3 Nb5 35. Ke2 Rxd4 36. Rc5 Rd5 37. Rc4 Nd4+ 38. Ke3 Nf5+ 39. Ke2 Ra5 40. g4 Ra2+ 41. Kf3 Ra3+ 42. Ke2 Nh4 43. Re4 g5 44. Re3 Rxe3+ 45. Kxe3 Ng6 46. Kf3 Kf6 47. Kg3 Ke5 48. Kf3 Kd4 49. Kg2 Nh4+ 50. Kg3 Ke4 51. Kh2 Kf3 52. Kg1 Ng2 53. Kf1 e5 54. Kg1 e4 55. Kf1 Nf4 56. Kg1 Nd3 57. h4 gxh4 58. g5 Nxf2 59. Kh2 e3 60. Kg1 e2 61. Kh2 e1=Q 62. g6 Qh1# 0-1

[Event "45th FIDE Olympiad 2024"]
[Site "Budapest"]
[Date "2024.09.11"]
[Round "1.36"]
[White "Halynyazov, Vepaly"]
[Black "Whyms, Chapell"]
[Result "1-0"]
[ECO "A65"]
[WhiteElo "2049"]
[BlackElo "1701"]
[Annotator "NA"]
[PlyCount "89"]
[EventDate "2024.09.05"]
[EventType "team-tourn"]
[EventCountry "HUN"]
[SourceTitle "playchess.com"]
[Source "ChessBase"]
[SourceQuality "1"]
[WhiteTeam "Turkmenistan"]
[BlackTeam "Bahamas"]
[WhiteTeamCountry "TKM"]
[BlackTeamCountry "BAH"]
[TimeControl "40/5400+30:1800+30"]

1. d4 Nf6 2. c4 g6 3. Nc3 Bg7 4. e4 d6 5. h3 O-O 6. Bg5 c5 7. d5 e6 8. Nf3 exd5 9. cxd5 h6 10. Be3 Re8 11. Bd3 b5 12. Bxb5 Nbd7 13. Bd3 c4 14. Bc2 Rb8 15. Rb1 Qa5 16. O-O Nc5 17. Qd2 Kh7 18. Rfe1 Bd7 19. Bd4 Re7 20. Qf4 Ne8 21. e5 dxe5 22. Bxe5 Bxe5 23. Rxe5 Qc7 24. Bxg6+ Kg7 25. Bc2 Nd3 26. Bxd3 cxd3 27. Qg3+ Kf8 28. Rxe7 Qxg3 29. Rxe8+ Kxe8 30. fxg3 Bf5 31. Nd4 Bg6 32. Nc6 d2 33. Nxb8 Bxb1 34. Kf2 Bd3 35. Ke3 Bf1 36. Kxd2 Bxg2 37. h4 h5 38. Ke3 Ke7 39. Kd4 Bf1 40. Kc5 a6 41. d6+ Kd8 42. d7 Bg2 43. Kd6 Bb7 44. Ne2 a5 45. Nd4 1-0

[Event "45th FIDE Olympiad 2024"]
[Site "Budapest"]
[Date "2024.09.11"]
[Round "1.36"]
[White "Wang, Ting-Hao"]
[Black "McShane, Luke J"]
[Result "0-1"]
[ECO "C45"]
[WhiteElo "1842"]
[BlackElo "2611"]
[Annotator "RC"]
[PlyCount "58"]
[EventDate "2024.09.05"]
[EventType "team-tourn"]
[EventCountry "HUN"]
[SourceTitle "playchess.com"]
[Source "ChessBase"]
[SourceQuality "1"]
[WhiteTeam "Chinese Taipei"]
[BlackTeam "England"]
[BlackTeamCountry "ENG"]
[TimeControl "40/5400+30:1800+30"]

1. e4 {[%emt 0:00:07]} e5 {[%emt 0:00:05]} 2. Nf3 {[%emt 0:00:14]} Nc6 {[%emt 0:00:08]} 3. d4 {[%emt 0:00:18]} exd4 {[%emt 0:00:06]} 4. Nxd4 {[%emt 0:00:10]} Bb4+ {[%emt 0:00:08]} 5. c3 {[%emt 0:01:36]} Be7 {[%emt 0:00:07]} 6. Nxc6 {[%emt 0:07:39]} bxc6 {[%emt 0:00:10]} 7. Bc4 {[%emt 0:01:08]} Nf6 {[%emt 0:02:39]} 8. e5 {[%emt 0:05:33]} Nd5 {[%emt 0:02:15]} 9. Bxd5 {[%emt 0:02:54]} cxd5 {[%emt 0:00:08]} 10. Qxd5 {[%emt 0:03:36]} Ba6 {[%emt 0:00:23]} 11. c4 {[%emt 0:03:30]} c6 {[%emt 0:02:57]} 12. Qd4 {[%emt 0:01:57]} O-O {[%emt 0:11:09]} 13. O-O {[%emt 0:02:05]} d6 {[%emt 0:02:40]} 14. exd6 {[%emt 0:06:53]} Bxd6 {[%emt 0:00:17]} 15. Be3 {[%emt 0:09:09]} Qb8 {[%emt 0:04:36]} 16. Nc3 {[%emt 0:14:37]} Bxh2+ {[%emt 0:00:32]} 17. Kh1 {[%emt 0:00:05]} Be5 {[%emt 0:00:08]} 18. Qc5 {[%emt 0:01:24]} Re8 {[%emt 0:01:49]} 19. Rae1 {[%emt 0:16:28]} Bxc3 {[%emt 0:05:15]} 20. Rd1 {[%emt 0:07:42]} Bxb2 {[%emt 0:03:02]} 21. Rd6 {[%emt 0:03:07]} Be5 {[%emt 0:00:33]} 22. Rd7 {[%emt 0:01:49]} Bc8 {[%emt 0:02:52]} 23. Rd2 {[%emt 0:00:21]} Be6 {[%emt 0:00:33]} 24. f4 {[%emt 0:02:48]} Bf6 {[%emt 0:00:21]} 25. f5 {[%emt 0:01:58]} Bxc4 {[%emt 0:00:19]} 26. Qxc4 {[%emt 0:03:37]} Rxe3 {[%emt 0:00:15]} 27. Qxc6 {[%emt 0:00:21]} h5 {[%emt 0:00:44]} 28. Rd7 {[%emt 0:00:21]} Qe8 {[%emt 0:00:17]} 29. Qd5 {[%emt 0:00:24]} Re1 {[%emt 0:01:15]} 0-1

[Event "45th FIDE Olympiad 2024"]
[Site "Budapest"]
[Date "2024.09.11"]
[Round "1.37"]
[White "Maghsoodloo, Parham"]
[Black "Tan, Jun Ying"]
[Result "1-0"]
[ECO "D02"]
[WhiteElo "2723"]
[BlackElo "2322"]
[Annotator "TA"]
[PlyCount "79"]
[EventDate "2024.09.05"]
[EventType "team-tourn"]
[EventCountry "HUN"]
[SourceTitle "playchess.com"]
[Source "ChessBase"]
[SourceQuality "1"]
[WhiteTeam "Iran"]
[BlackTeam "Malaysia"]
[WhiteTeamCountry "IRI"]
[BlackTeamCountry "MAS"]
[TimeControl "40/5400+30:1800+30"]

{[%evp 9,78,27,31,18,21,18,39,33,16,13,29,4,0,0,22,15,49,46,51,56,68,63,59,43,45,51,91,48,69,79,84,65,86,89,84,84,84,85,78,83,87,86,89,96,187,196,267,258,580,592,572,601,562,552,1399,590,662,662,660,654,629,614,1999,1995,1592,1444,29991,29992,29993,29994,29999]} 1. Nf3 {[%emt 0:00:04]} d5 {[%emt 0:00:18]} 2. g3 {[%emt 0:00:09]} Nd7 {[%emt 0:00:22]} 3. d4 {[%emt 0:00:45]} Nb6 {[%emt 0:00:09]} 4. Nc3 {[%emt 0:01:49]} Nf6 {[%emt 0:00:38]} 5. Bg2 {[%emt 0:00:13]} g6 {[%emt 0:00:12]} 6. a4 {[%emt 0:08:04]} a5 {[%emt 0:00:19]} 7. b3 {[%emt 0:03:15]} Bg7 {[%emt 0:00:26]} 8. Ba3 {[%emt 0:01:20] White is slightly better.} O-O {[%emt 0:00:31]} 9. O-O {[%emt 0:00:12]} c6 {[%emt 0:01:07]} 10. h3 {[%emt 0:06:57]} Re8 {[%emt 0:02:32]} 11. e3 {[%emt 0:01:39]} Bf5 {[%emt 0:17:44]} 12. Rc1 {[%emt 0:04:14]} Ne4 {[%emt 0:04:22]} 13. Ne2 {[%emt 0:00:20]} Nd6 {[%emt 0:00:38]} 14. Nd2 {[%emt 0:02:40]} Ne4 {[%emt 0:22:23]} 15. Nxe4 {[%emt 0:03:02]} Bxe4 {[%emt 0:00:59]} 16. f3 $1 {[%emt 0:00:07]} Bf5 {[%emt 0:00:08]} 17. e4 {[%emt 0:00:04][%cal Be3e4,Be4e5][%mdl 32]} Be6 {[%emt 0:04:22]} 18. Qd3 {[%emt 0:03:52]} Bh6 {[%emt 0:05:24]} 19. Rcd1 {[%emt 0:02:27]} f6 {[%emt 0:00:31]} 20. g4 {[%emt 0:01:33]} Qd7 {[%emt 0:10:19]} 21. Qc3 {[%emt 0:05:39]} Bf7 {[%emt 0:04:08] [#]} 22. e5 $1 {[%emt 0:00:19]} f5 {[%emt 0:00:57]} 23. Qe1 {[%emt 0:00:57] White is more active.} e6 {[%emt 0:01:55]} 24. h4 {[%emt 0:01:22][%cal Bh3h4,Bh4h5][%mdl 32]} Bf8 {[%emt 0:00:40]} 25. Bc1 {[%emt 0:00:01]} Qd8 {[%emt 0:03:22]} 26. h5 {[%emt 0:02:59]} Bg7 {[%emt 0:03:26]} (26... Be7 $16) 27. Qg3 $18 {[%emt 0:01:54]} fxg4 {[%emt 0:03:14]} (27... Nd7 $142 28. gxf5 exf5) 28. fxg4 {[%emt 0:01:02][%cal Bf3g4,Bg4h5,Bh5h6][%mdl 32]} gxh5 $2 {[%emt 0:09:30] [#]} (28... Qe7 29. h6 Bh8) 29. Rxf7 $1 {[%emt 0:01:34][%mdl 512]} Kxf7 {[%emt 0:00:15]} 30. Rf1+ {[%emt 0:00:37]} Kg8 {[%emt 0:00:45]} 31. gxh5 {[%emt 0:00:03]} Kh8 {[%emt 0:01:23]} 32. Bg5 {[%emt 0:00:40]} (32. Rf7 $142 {[%csl Gf7][%cal Rg3g7]} Rg8 33. Nf4 (33. Rxb7 Nd7 $17)) 32... Qc7 {[%emt 0:01:39]} 33. h6 {[%emt 0:00:30]} Bxh6 {[%emt 0:00:25]} 34. Bxh6 {[%emt 0:00:08] Hoping for Bg5. This pair of bishops is nice. Black is weak on the dark squares} Rg8 {[%emt 0:00:28]} 35. Bg5 {[%emt 0:00:07] And now Bf6+ would win.} Raf8 {[%emt 0:01:53]} 36. Rxf8 {[%emt 0:00:15]} Rxf8 {[%emt 0:00:02]} 37. Nf4 {[%emt 0:00:11][%cal Be2f4,Bf4e6,Be6f8][%mdl 32]} Qg7 {[%emt 0:01:03]} 38. Nxe6 {[%emt 0:00:10] White mates.} Qg6 {[%emt 0:00:29]} 39. Nxf8 {[%emt 0:00:08]} Qxc2 {[%emt 0:00:25]} 40. Bf6# {[%emt 0:00:08] Weighted Error Value: White=0.16 (very precise) /Black=0.47.  Mistake:       	White=1     	Black=3      Inaccurate:     	White=1     	Black=2      OK:         	White=13    	Black=10     Best:        	---       	Black=1      Strong:       	White=2     	---        Brilliant:      	White=1     	---} 1-0

[Event "45th FIDE Olympiad 2024"]
[Site "Budapest"]
[Date "2024.09.11"]
[Round "1.37"]
[White "Gemy, Jose Daniel"]
[Black "Fancy, Stuart"]
[Result "1-0"]
[ECO "B00"]
[WhiteElo "2315"]
[BlackElo "1921"]
[Annotator "ChessBase"]
[PlyCount "57"]
[EventDate "2024.09.05"]
[EventType "team-tourn"]
[EventCountry "HUN"]
[SourceTitle "playchess.com"]
[Source "ChessBase"]
[SourceQuality "1"]
[WhiteTeam "Bolivia"]
[BlackTeam "Papua New Guinea"]
[WhiteTeamCountry "BOL"]
[BlackTeamCountry "PNG"]
[TimeControl "40/5400+30:1800+30"]

1. e4 Nc6 2. Nf3 d6 3. Bc4 Nf6 4. d3 Na5 5. Nc3 g6 6. h3 Bg7 7. Bg5 h6 8. Be3 O-O 9. Qd2 Kh7 10. g4 c6 11. g5 Nxc4 12. dxc4 hxg5 13. Nxg5+ Kg8 14. O-O-O Qa5 15. Kb1 Re8 16. f4 Nh7 17. Rdg1 Bxc3 18. bxc3 f5 19. Nxh7 Kxh7 20. Qf2 fxe4 21. Rg5 Bf5 22. Bd4 Kg8 23. h4 Kf7 24. h5 Ke6 25. hxg6 c5 26. Rxf5 Qb6+ 27. Ka1 cxd4 28. Rb5 e3 29. Qg3 1-0

[Event "45th FIDE Olympiad 2024"]
[Site "Budapest"]
[Date "2024.09.11"]
[Round "1.38"]
[White "Wong, Jianwen"]
[Black "Daneshvar, Bardiya"]
[Result "0-1"]
[ECO "A13"]
[WhiteElo "2231"]
[BlackElo "2598"]
[Annotator "TA"]
[PlyCount "78"]
[EventDate "2024.09.05"]
[EventType "team-tourn"]
[EventCountry "HUN"]
[SourceTitle "playchess.com"]
[Source "ChessBase"]
[SourceQuality "1"]
[WhiteTeam "Malaysia"]
[BlackTeam "Iran"]
[WhiteTeamCountry "MAS"]
[BlackTeamCountry "IRI"]
[TimeControl "40/5400+30:1800+30"]

{[%evp 11,78,26,25,-2,31,36,42,35,27,40,33,37,28,-50,-47,-52,-47,-52,0,-44,-53,-54,-60,-110,-68,-165,-114,-101,-136,-135,-132,-137,-129,-112,-106,-114,-109,-245,-241,-262,-262,-256,-262,-313,-211,-361,-344,-343,-342,-338,-274,-361,-329,-506,-449,-429,-410,-715,-711,-945,-954,-927,-875,-1118,-1031,-1140,-1089,-1067,-1060]} 1. c4 {[%emt 0:00:07]} g6 {[%emt 0:00:08]} 2. g3 {[%emt 0:00:52]} Bg7 {[%emt 0:00:04]} 3. Bg2 {[%emt 0:00:27]} e6 {[%emt 0:00:03]} 4. Nf3 {[%emt 0:04:11]} d5 {[%emt 0:00:56]} 5. O-O {[%emt 0:01:38]} Ne7 {[%emt 0:00:03]} 6. d4 {[%emt 0:05:07]} O-O {[%emt 0:00:26]} 7. h4 {[%emt 0:13:01]} h6 {[%emt 0:04:09]} 8. Bf4 {[%emt 0:04:00]} Nbc6 {[%emt 0:05:08]} 9. Qc1 {[%emt 0:04:55] White is slightly better.} Nf5 {[%emt 0:06:26]} 10. Nc3 {[%emt 0:04:03]} dxc4 {[%emt 0:07:11]} 11. Rd1 $1 {[%emt 0:05:06]} Qe7 {[%emt 0:05:35][%cal Of8d8]} 12. e4 {[%emt 0:15:41]} (12. Nb5 $11) 12... Nfxd4 $15 {[%emt 0:00:50]} 13. Nxd4 {[%emt 0:01:14]} Nxd4 {[%emt 0:01:20]} 14. e5 {[%emt 0:04:21]} c5 {[%emt 0:06:59]} (14... Rd8 $15) 15. Re1 {[%emt 0:03:05]} Kh7 {[%emt 0:06:12]} 16. Ne4 {[%emt 0:01:16]} Bd7 $1 {[%emt 0:02:15]} 17. Nd6 {[%emt 0:07:17]} (17. Qxc4 $15 Bb5 18. Qxc5 Qxc5 19. Nxc5) 17... b5 {[%emt 0:03:15]} 18. b3 {[%emt 0:04:34]} (18. a4 $1 $15) 18... Bc6 {[%emt 0:04:21]} ({Better is} 18... f6 $19 {[%cal Of6e5] aiming for ...fxe5!} 19. exf6 Qxf6 20. bxc4 e5) 19. Bxc6 $17 {[%emt 0:07:24]} Nxc6 {[%emt 0:00:11]} 20. Nxb5 {[%emt 0:00:47]} cxb3 {[%emt 0:02:40]} 21. axb3 {[%emt 0:00:30]} a6 {[%emt 0:02:30]} 22. Nd6 {[%emt 0:00:38]} Nd4 $36 {[%emt 0:00:13][%mdl 2048] Black has strong initiative.} 23. Qd1 {[%emt 0:00:59][%cal Ob3b4]} f6 {[%emt 0:05:06]} 24. exf6 {[%emt 0:04:22] Loses the game.} (24. Be3 $17 {keeps fighting.}) 24... Rxf6 $19 {[%emt 0:00:21]} 25. Ne4 {[%emt 0:04:12] [#]} Rxf4 {[%emt 0:00:45][%mdl 512]} 26. gxf4 {[%emt 0:00:07]} Qxh4 {[%emt 0:00:05]} 27. Rc1 {[%emt 0:02:31]} Qxf4 {[%emt 0:00:39]} 28. Re3 {[%emt 0:00:20] Repels Nf3+} (28. Rc3 {only move.}) 28... Be5 {[%emt 0:03:52]} 29. Ng3 {[%emt 0:00:27]} Rf8 {[%emt 0:00:18]} 30. Qe1 {[%emt 0:01:09]} Bg7 {[%emt 0:02:10]} 31. Kg2 {[%emt 0:00:56]} Qg5 {[%emt 0:00:28]} 32. Qh1 {[%emt 0:00:38]} (32. Rec3 {is a better defense.}) 32... Qd5+ {[%emt 0:00:51]} 33. Ne4 {[%emt 0:00:21]} Nxb3 {[%emt 0:01:24]} 34. Rxb3 {[%emt 0:00:41]} (34. Rd1 $142 Nd4 35. f3) 34... Qxb3 {[%emt 0:00:27] Black is clearly winning.} 35. Rxc5 {[%emt 0:00:28]} Qf3+ {[%emt 0:00:22]} 36. Kg1 {[%emt 0:00:02]} Qg4+ {[%emt 0:00:30]} 37. Qg2 {[%emt 0:00:09]} Rf4 {[%emt 0:01:33]} 38. Qxg4 {[%emt 0:00:41]} Rxg4+ {[%emt 0:00:02]} 39. Ng3 {[%emt 0:00:07] [#]} Rxg3+ $1 {[%emt 0:00:12] Weighted Error Value: White=0.67/Black=0.20 (precise) .  Mistake:       	White=7     	Black=2      Inaccurate:     	White=3     	Black=3      OK:         	White=9     	Black=10     Best:        	White=2     	Black=2      Strong:       	White=1     	Black=1      Brilliant:      	---       	Black=1} 0-1

[Event "45th FIDE Olympiad 2024"]
[Site "Budapest"]
[Date "2024.09.11"]
[Round "1.39"]
[White "Idani, Pouya"]
[Black "Ang, Ern Jie Anderson"]
[Result "1-0"]
[ECO "C84"]
[WhiteElo "2599"]
[BlackElo "2132"]
[Annotator "TA"]
[PlyCount "75"]
[EventDate "2024.09.05"]
[EventType "team-tourn"]
[EventCountry "HUN"]
[SourceTitle "playchess.com"]
[Source "ChessBase"]
[SourceQuality "1"]
[WhiteTeam "Iran"]
[BlackTeam "Malaysia"]
[WhiteTeamCountry "IRI"]
[BlackTeamCountry "MAS"]
[TimeControl "40/5400+30:1800+30"]

{[%evp 18,75,18,12,16,5,6,0,15,3,14,5,14,14,29,24,32,0,17,0,26,0,18,21,37,18,86,68,117,111,154,146,131,143,143,150,135,140,420,412,457,443,536,499,489,511,474,468,560,522,750,720,718,741,752,749,813,806,869,864]} 1. e4 {[%emt 0:00:03]} e5 {[%emt 0:00:11]} 2. Nf3 {[%emt 0:00:16]} Nc6 {[%emt 0:00:09]} 3. Bb5 {[%emt 0:00:25]} a6 {[%emt 0:00:07]} 4. Ba4 {[%emt 0:00:03]} Nf6 {[%emt 0:00:07]} 5. d3 {[%emt 0:00:03]} b5 {[%emt 0:00:32]} 6. Bb3 {[%emt 0:00:05]} Be7 {[%emt 0:00:07]} 7. a4 {[%emt 0:01:06]} b4 {[%emt 0:03:50]} 8. a5 {[%emt 0:00:34]} d6 {[%emt 0:02:59]} 9. O-O {[%emt 0:02:45]} O-O {[%emt 0:00:48]} 10. Nbd2 {[%emt 0:00:53]} Rb8 {[%emt 0:01:15]} 11. Nc4 {[%emt 0:03:50]} Be6 {[%emt 0:09:16]} 12. h3 {[%emt 0:03:28]} h6 {[%emt 0:05:32] The position is equal.} 13. Re1 {[%emt 0:07:01]} Qc8 {[%emt 0:07:08]} 14. Be3 {[%emt 0:05:06]} Qb7 {[%emt 0:04:09]} 15. Nfd2 {[%emt 0:05:13]} d5 {[%emt 0:09:39]} 16. exd5 {[%emt 0:00:05]} Bxd5 {[%emt 0:00:22]} 17. f3 {[%emt 0:00:07]} Rfd8 {[%emt 0:06:24]} 18. Bf2 {[%emt 0:02:05]} Bd6 {[%emt 0:04:10]} (18... Nd7 $5) 19. Ne4 {[%emt 0:09:37]} Nxe4 {[%emt 0:03:02]} (19... Be7 $5) 20. fxe4 {[%emt 0:00:04]} Be6 {[%emt 0:00:10]} 21. Rf1 {[%emt 0:01:32]} Be7 {[%emt 0:08:18]} (21... Nd4 $11 {remains equal.}) 22. Qh5 $16 {[%emt 0:05:30]} Bf8 {[%emt 0:12:52]} (22... Rf8 $14 {was preferrable.}) 23. Be3 {[%emt 0:07:23]} ({Stronger than} 23. Nxe5 Bxb3 24. Nxc6 Qxc6 $17) 23... Re8 {[%emt 0:11:23]} 24. Rf3 {[%emt 0:06:24][%cal Oe3h6] White is much more active.} (24. Nxe5 $2 {loses.} Nxe5 25. Ba4 Bd6 $19) 24... g6 {[%emt 0:04:18] [#]} 25. Qh4 {[%emt 0:00:24] aiming for Raf1.} Nd4 {[%emt 0:01:36]} 26. Bxd4 {[%emt 0:00:09]} exd4 {[%emt 0:00:03]} 27. Raf1 {[%emt 0:01:15] Threatens to win with Qg3.} c5 $2 {[%emt 0:00:54][%mdl 8192] Black cannot hold the game after this.} (27... Re7 $16) 28. Qg3 $18 {[%emt 0:05:29][%cal Of3f7] Black must now prevent Rxf7!} Qe7 {[%emt 0:02:36]} 29. Nb6 {[%emt 0:00:37] [#] Hoping for Rxf7. White is clearly winning.} Qg5 {[%emt 0:01:35] Black is weak on the light squares} 30. Bxe6 {[%emt 0:00:29]} fxe6 {[%emt 0:00:20]} 31. Qxg5 {[%emt 0:00:21]} hxg5 {[%emt 0:00:07][%cal Bh6g5,Bg5g4][%mdl 32]} 32. Nd7 {[%emt 0:00:03]} Bd6 {[%emt 0:00:38]} 33. Nf6+ {[%emt 0:01:46]} Kg7 {[%emt 0:00:32]} 34. Nxe8+ {[%emt 0:00:06]} Rxe8 {[%emt 0:00:03]} 35. Rf7+ {[%emt 0:00:10]} Kh6 {[%emt 0:00:05]} 36. Ra7 {[%emt 0:00:30]} g4 {[%emt 0:00:10]} 37. Rxa6 {[%emt 0:00:05]} Be5 {[%emt 0:00:10]} 38. Rc6 {[%emt 0:00:08] Weighted Error Value: White=0.09 (flawless) /Black=0.42.  Loses game:     	---       	Black=1      Mistake:       	---       	Black=2      Inaccurate:     	White=2     	Black=3      OK:         	White=12    	Black=6      Best:        	---       	Black=1} 1-0

[Event "45th FIDE Olympiad 2024"]
[Site "Budapest"]
[Date "2024.09.11"]
[Round "1.39"]
[White "Pinto, Daniel"]
[Black "Jones, Rupert"]
[Result "1-0"]
[ECO "A25"]
[WhiteElo "2273"]
[BlackElo "1849"]
[Annotator "ChessBase"]
[PlyCount "69"]
[EventDate "2024.09.05"]
[EventType "team-tourn"]
[EventCountry "HUN"]
[SourceTitle "playchess.com"]
[Source "ChessBase"]
[SourceQuality "1"]
[WhiteTeam "Bolivia"]
[BlackTeam "Papua New Guinea"]
[WhiteTeamCountry "BOL"]
[BlackTeamCountry "PNG"]
[TimeControl "40/5400+30:1800+30"]

1. c4 e5 2. Nc3 Nc6 3. g3 g6 4. Bg2 Bg7 5. e3 d6 6. Nge2 Nge7 7. O-O O-O 8. Rb1 Be6 9. Nd5 a5 10. a3 Qd7 11. d3 Nd8 12. Nec3 f5 13. b4 Bxd5 14. Nxd5 axb4 15. Nxe7+ Qxe7 16. axb4 Ra7 17. Bb2 c6 18. Ra1 Rxa1 19. Qxa1 Ne6 20. Re1 Qc7 21. Qa7 h6 22. b5 Nd8 23. bxc6 Nxc6 24. Qa2 Kh7 25. Rb1 Rb8 26. Bc3 b6 27. Qa4 Ne7 28. Qb5 g5 29. Ra1 h5 30. Ra6 Nc8 31. Qe8 Bh6 32. Bd5 Ne7 33. Qf7+ Kh8 34. Qxh5 Nxd5 35. Qxh6+ 1-0